fUSD/lending_fUSD_20250109
["ID","MTS","AMOUNT","RATE_DAILY","PERIOD"]
[348335584,1736451039156,-410.80014014,9.858e-05,2]
[348335585,1736451039179,-170.68985986,9.858e-05,2]
[348335586,1736451039189,-271.24761689,9.858e-05,2]
[348335587,1736451039203,-494.72755185,9.858e-05,2]
[348335588,1736451039242,-20.88483126,9.858e-05,2]
[348335589,1736451039251,-823.01,9.858e-05,2]
[348335590,1736451039260,-2661.97,9.858e-05,2]
[348335591,1736451039270,-726.75,9.858e-05,2]
[348335592,1736451039279,-898.07,9.858e-05,2]
[348335593,1736451039288,-583.28,9.858e-05,2]
[348335594,1736451039298,-500.0,9.858e-05,2]
[348335595,1736451039308,-500.0,9.858e-05,2]
[348335596,1736451039318,-766.26,9.858e-05,2]
[348335597,1736451039332,-508.53,9.858e-05,2]
[348335598,1736451039341,-887.5,9.859e-05,2]
[348335599,1736451039351,-500.0,9.859e-05,2]
[348335600,1736451039361,-923.54,9.859e-05,2]
[348335601,1736451039371,-1204.08,9.86e-05,2]
[348335602,1736451039381,-711.22,9.86e-05,2]
[348335603,1736451039391,-699.730821,9.86e-05,2]
[348335604,1736451039402,-471.49478764,9.86e-05,2]
[348335605,1736451039412,-500.0,9.86e-05,2]
[348335606,1736451039422,-500.0,9.86e-05,2]
[348335607,1736451039431,-500.0,9.86e-05,2]
[348335608,1736451039443,-500.0,9.86e-05,2]
[348335609,1736451039453,-500.0,9.86e-05,2]
[348335610,1736451039462,-2560.88,9.86e-05,2]
[348335611,1736451039472,-500.0,9.86e-05,2]
[348335612,1736451039481,-692.384704,9.86e-05,2]
[348335613,1736451039492,-579.13,9.86e-05,2]
[348335614,1736451039502,-500.0,9.86e-05,2]
[348335615,1736451039512,-160.578973,9.86e-05,2]
[348335617,1736451039521,-500.0,9.86e-05,2]
[348335619,1736451039530,-500.0,9.86e-05,2]
[348335621,1736451039540,-157.358949,9.86e-05,2]
[348335622,1736451039549,-500.0,9.86e-05,2]
[348335623,1736451039559,-500.0,9.86e-05,2]
[348335624,1736451039568,-500.0,9.86e-05,2]
[348335625,1736451039578,-500.0,9.86e-05,2]
[348335626,1736451039588,-500.0,9.86e-05,2]
[348335627,1736451039597,-1235.92,9.86e-05,2]
[348335628,1736451039607,-500.0,9.86e-05,2]
[348335629,1736451039617,-500.0,9.86e-05,2]
[348335630,1736451039627,-500.0,9.86e-05,2]
[348335631,1736451039637,-500.0,9.86e-05,2]
[348335632,1736451039647,-500.0,9.86e-05,2]
[348335633,1736451039657,-500.0,9.86e-05,2]
[348335634,1736451039667,-500.0,9.86e-05,2]
[348335635,1736451039677,-500.0,9.86e-05,2]
[348335636,1736451039686,-775.49,9.86e-05,2]
[348335637,1736451039697,-500.0,9.86e-05,2]
[348335638,1736451039706,-500.0,9.86e-05,2]
[348335639,1736451039715,-500.0,9.86e-05,2]
[348335640,1736451039725,-500.0,9.86e-05,2]
[348335642,1736451039734,-500.0,9.86e-05,2]
[348335644,1736451039743,-500.0,9.86e-05,2]
[348335646,1736451039752,-500.0,9.86e-05,2]
[348335649,1736451039761,-500.0,9.86e-05,2]
[348335652,1736451039770,-500.0,9.86e-05,2]
[348335655,1736451039779,-500.0,9.86e-05,2]
[348335657,1736451039788,-500.0,9.86e-05,2]
[348335661,1736451039798,-500.0,9.86e-05,2]
[348335663,1736451039808,-500.0,9.86e-05,2]
[348335665,1736451039818,-500.0,9.86e-05,2]
[348335667,1736451039827,-500.0,9.86e-05,2]
[348335669,1736451039837,-500.0,9.86e-05,2]
[348335671,1736451039847,-500.0,9.86e-05,2]
[348335672,1736451039857,-491.50512249,9.86e-05,2]
[348335673,1736451039872,-8.49487751,9.86e-05,2]
[348335674,1736451039882,-375.65452399,9.86e-05,2]
[348335675,1736451039894,-171.56087066,9.86e-05,2]
[348335676,1736451039904,-500.0,9.86e-05,2]
[348335677,1736451039913,-168.44747652,9.86e-05,2]
[348335698,1736451040461,-331.55252348,9.86e-05,2]
[348335700,1736451040471,-398.47697655,9.86e-05,2]
[348335702,1736451040482,-101.52302345,9.86e-05,2]
[348335704,1736451040493,-500.0,9.86e-05,2]
[348335706,1736451040502,-937.12697655,9.86e-05,2]
[348335708,1736451040513,-500.0,9.86e-05,2]
[348335723,1736451040641,-2188.82302345,9.86e-05,2]
[348335725,1736451040650,-500.0,9.86e-05,2]
[348335727,1736451040660,-500.0,9.86e-05,2]
[348335729,1736451040670,-500.0,9.86e-05,2]
[348335731,1736451040679,-429.63187655,9.86e-05,2]
[348335733,1736451040703,-70.36812345,9.86e-05,2]
[348335735,1736451040713,-500.0,9.86e-05,2]
[348335737,1736451040722,-500.0,9.86e-05,2]
[348335739,1736451040731,-500.0,9.86e-05,2]
[348335741,1736451040740,-168.00183476,9.86e-05,2]
[348335959,1736451042952,-500.0,9.856e-05,2]
[348335961,1736451042962,-500.0,9.856e-05,2]
[348335963,1736451042972,-850.52,9.858e-05,2]
[348335965,1736451042983,-331.99816524,9.86e-05,2]
[348335967,1736451042992,-543.08,9.86e-05,2]
[348335969,1736451043002,-500.0,9.86e-05,2]
[348335971,1736451043011,-500.0,9.86e-05,2]
[348335973,1736451043021,-500.0,9.86e-05,2]
[348335975,1736451043030,-500.0,9.86e-05,2]
[348335977,1736451043041,-500.0,9.86e-05,2]
[348335979,1736451043051,-500.0,9.86e-05,2]
[348335981,1736451043060,-500.0,9.86e-05,2]
[348335983,1736451043071,-500.0,9.86e-05,2]
[348335985,1736451043081,-500.0,9.86e-05,2]
[348335987,1736451043091,-500.0,9.86e-05,2]
[348335989,1736451043100,-500.0,9.86e-05,2]
[348335991,1736451043110,-811.91,9.86e-05,2]
[348335993,1736451043119,-500.0,9.86e-05,2]
[348335995,1736451043128,-500.0,9.86e-05,2]
[348335997,1736451043139,-500.0,9.86e-05,2]
[348335999,1736451043148,-500.0,9.86e-05,2]
[348336001,1736451043158,-500.0,9.86e-05,2]
[348336003,1736451043168,-500.0,9.86e-05,2]
[348336005,1736451043178,-500.0,9.86e-05,2]
[348336007,1736451043187,-547.88,9.86e-05,2]
[348336009,1736451043197,-735.73,9.86e-05,2]
[348336011,1736451043206,-500.0,9.86e-05,2]
[348336013,1736451043216,-500.0,9.86e-05,2]
[348336015,1736451043225,-500.0,9.86e-05,2]
[348336017,1736451043235,-1090.8,9.86e-05,2]
[348336019,1736451043244,-375.45005182,9.86e-05,2]
[348336021,1736451043255,-500.0,9.86e-05,2]
[348336043,1736451043480,-500.0,9.86e-05,2]
[348336045,1736451043491,-500.0,9.86e-05,2]
[348336048,1736451043501,-500.0,9.86e-05,2]
[348336050,1736451043511,-208.87285503,9.86e-05,2]
[348336051,1736451043520,-500.0,9.86e-05,2]
[348336052,1736451043529,-500.0,9.86e-05,2]
[348336054,1736451043539,-500.0,9.86e-05,2]
[348336056,1736451043548,-500.0,9.86e-05,2]
[348336058,1736451043557,-500.0,9.86e-05,2]
[348336060,1736451043566,-699.64,9.86e-05,2]
[348336061,1736451043576,-500.0,9.86e-05,2]
[348336062,1736451043586,-500.0,9.86e-05,2]
[348336064,1736451043595,-500.0,9.86e-05,2]
[348336066,1736451043604,-500.0,9.86e-05,2]
[348336068,1736451043614,-500.0,9.86e-05,2]
[348336070,1736451043623,-500.0,9.86e-05,2]
[348336072,1736451043633,-500.0,9.86e-05,2]
[348336074,1736451043642,-500.0,9.86e-05,2]
[348336076,1736451043652,-500.0,9.86e-05,2]
[348336078,1736451043661,-500.0,9.86e-05,2]
[348336080,1736451043671,-500.0,9.86e-05,2]
[348336082,1736451043680,-500.0,9.86e-05,2]
[348336084,1736451043689,-658.96,9.86e-05,2]
[348336086,1736451043704,-500.0,9.86e-05,2]
[348336088,1736451043713,-500.0,9.86e-05,2]
[348336090,1736451043723,-675.66,9.86e-05,2]
[348336092,1736451043732,-500.0,9.86e-05,2]
[348336094,1736451043742,-500.0,9.86e-05,2]
[348336096,1736451043751,-259.96327341,9.86e-05,2]
[348336098,1736451043761,-500.0,9.86e-05,2]
[348336100,1736451043770,-601.18,9.86e-05,2]
[348336102,1736451043779,-500.0,9.86e-05,2]
[348336104,1736451043788,-500.0,9.86e-05,2]
[348336106,1736451043797,-500.0,9.86e-05,2]
[348336108,1736451043807,-658.17,9.86e-05,2]
[348336110,1736451043816,-500.0,9.86e-05,2]
[348336112,1736451043826,-587.79,9.86e-05,2]
[348336114,1736451043836,-500.0,9.86e-05,2]
[348336117,1736451043846,-500.0,9.86e-05,2]
[348336118,1736451043856,-500.0,9.86e-05,2]
[348336120,1736451043865,-500.0,9.86e-05,2]
[348336122,1736451043874,-500.0,9.86e-05,2]
[348336124,1736451043883,-500.0,9.86e-05,2]
[348336126,1736451043893,-616.67,9.86e-05,2]
[348336128,1736451043903,-500.0,9.86e-05,2]
[348336130,1736451043912,-500.0,9.86e-05,2]
[348336132,1736451043922,-500.0,9.86e-05,2]
[348336134,1736451043931,-500.0,9.86e-05,2]
[348336136,1736451043941,-500.0,9.86e-05,2]
[348336139,1736451043952,-500.0,9.86e-05,2]
[348336141,1736451043963,-512.08,9.86e-05,2]
[348336143,1736451043975,-500.0,9.86e-05,2]
[348336145,1736451043984,-500.0,9.86e-05,2]
[348336147,1736451043994,-500.0,9.86e-05,2]
[348336149,1736451044004,-500.0,9.86e-05,2]
[348336151,1736451044013,-500.0,9.86e-05,2]
[348336153,1736451044023,-753.77,9.86e-05,2]
[348336155,1736451044032,-500.0,9.86e-05,2]
[348336157,1736451044041,-500.0,9.86e-05,2]
[348336159,1736451044050,-500.0,9.86e-05,2]
[348336161,1736451044059,-500.0,9.86e-05,2]
[348336163,1736451044068,-500.0,9.86e-05,2]
[348336165,1736451044085,-500.0,9.86e-05,2]
[348336167,1736451044094,-500.0,9.86e-05,2]
[348336168,1736451044103,-512.61193536,9.86e-05,2]
[348336170,1736451044113,-517.41701585,9.86e-05,2]
[348336172,1736451044122,-500.0,9.86e-05,2]
[348336175,1736451044132,-500.0,9.86e-05,2]
[348336177,1736451044141,-500.0,9.86e-05,2]
[348336178,1736451044150,-500.0,9.86e-05,2]
[348336180,1736451044159,-500.0,9.86e-05,2]
[348336182,1736451044168,-1086.73,9.86e-05,2]
[348336184,1736451044178,-500.0,9.86e-05,2]
[348336187,1736451044187,-500.0,9.86e-05,2]
[348336189,1736451044198,-536.07,9.86e-05,2]
[348336191,1736451044208,-500.0,9.86e-05,2]
[348336192,1736451044217,-500.0,9.86e-05,2]
[348336194,1736451044226,-580.04,9.86e-05,2]
[348336196,1736451044235,-500.0,9.86e-05,2]
[348336198,1736451044245,-500.0,9.86e-05,2]
[348336200,1736451044255,-500.0,9.86e-05,2]
[348336202,1736451044265,-500.0,9.86e-05,2]
[348336205,1736451044275,-780.71,9.86e-05,2]
[348336207,1736451044284,-1203.9,9.86e-05,2]
[348336208,1736451044293,-500.0,9.86e-05,2]
[348336211,1736451044303,-503.41766657,9.86e-05,2]
[348336212,1736451044312,-511.91,9.86e-05,2]
[348336214,1736451044324,-500.0,9.86e-05,2]
[348336216,1736451044333,-500.0,9.86e-05,2]
[348336218,1736451044343,-500.0,9.86e-05,2]
[348336221,1736451044352,-535.9,9.86e-05,2]
[348336222,1736451044362,-500.0,9.86e-05,2]
[348336225,1736451044372,-1455.19,9.86e-05,2]
[348336227,1736451044382,-500.0,9.86e-05,2]
[348336229,1736451044393,-500.0,9.86e-05,2]
[348336231,1736451044407,-500.0,9.86e-05,2]
[348336233,1736451044416,-500.0,9.86e-05,2]
[348336235,1736451044425,-500.0,9.86e-05,2]
[348336237,1736451044434,-500.0,9.86e-05,2]
[348336238,1736451044444,-500.0,9.86e-05,2]
[348336241,1736451044454,-500.0,9.86e-05,2]
[348336242,1736451044463,-500.0,9.86e-05,2]
[348336244,1736451044472,-500.0,9.86e-05,2]
[348336247,1736451044482,-500.0,9.86e-05,2]
[348336248,1736451044491,-500.0,9.86e-05,2]
[348336250,1736451044500,-500.0,9.86e-05,2]
[348336252,1736451044510,-500.0,9.86e-05,2]
[348336254,1736451044519,-500.0,9.86e-05,2]
[348336256,1736451044529,-2368.39,9.86e-05,2]
[348336258,1736451044538,-500.0,9.86e-05,2]
[348336260,1736451044547,-682.98,9.86e-05,2]
[348336262,1736451044556,-500.0,9.86e-05,2]
[348336265,1736451044566,-500.0,9.86e-05,2]
[348336267,1736451044575,-500.0,9.86e-05,2]
[348336268,1736451044585,-502.32046973,9.86e-05,2]
[348336270,1736451044595,-500.0,9.86e-05,2]
[348336272,1736451044604,-1517.51,9.86e-05,2]
[348336275,1736451044614,-500.0,9.86e-05,2]
[348336277,1736451044624,-500.0,9.86e-05,2]
[348336279,1736451044633,-500.0,9.86e-05,2]
[348336281,1736451044642,-706.51,9.86e-05,2]
[348336283,1736451044651,-500.0,9.86e-05,2]
[348336284,1736451044660,-500.0,9.86e-05,2]
[348336287,1736451044670,-500.0,9.86e-05,2]
[348336288,1736451044679,-754.29,9.86e-05,2]
[348336290,1736451044688,-526.09,9.86e-05,2]
[348336292,1736451044698,-500.0,9.86e-05,2]
[348336294,1736451044707,-500.0,9.86e-05,2]
[348336296,1736451044717,-500.0,9.86e-05,2]
[348336298,1736451044725,-827.55,9.86e-05,2]
[348336300,1736451044735,-500.0,9.86e-05,2]
[348336302,1736451044744,-4876.86,9.86e-05,2]
[348336304,1736451044754,-500.0,9.86e-05,2]
[348336306,1736451044763,-500.0,9.86e-05,2]
[348336308,1736451044771,-500.0,9.86e-05,2]
[348336310,1736451044781,-500.0,9.86e-05,2]
[348336312,1736451044789,-500.0,9.86e-05,2]
[348336314,1736451044799,-500.0,9.86e-05,2]
[348336316,1736451044807,-500.0,9.86e-05,2]
[348336318,1736451044817,-500.0,9.86e-05,2]
[348336320,1736451044827,-500.0,9.86e-05,2]
[348336322,1736451044836,-1990.38,9.86e-05,2]
[348336324,1736451044844,-500.0,9.86e-05,2]
[348336326,1736451044854,-500.0,9.86e-05,2]
[348336328,1736451044863,-500.0,9.86e-05,2]
[348336330,1736451044871,-500.0,9.86e-05,2]
[348336332,1736451044881,-500.0,9.86e-05,2]
[348336334,1736451044891,-500.0,9.86e-05,2]
[348336336,1736451044899,-500.0,9.86e-05,2]
[348336338,1736451044909,-500.0,9.86e-05,2]
[348336340,1736451044918,-500.0,9.86e-05,2]
[348336342,1736451044927,-500.0,9.86e-05,2]
[348336344,1736451044936,-500.0,9.86e-05,2]
[348336346,1736451044947,-500.0,9.86e-05,2]
[348336348,1736451044956,-500.0,9.86e-05,2]
[348336350,1736451044966,-725.26,9.86e-05,2]
[348336352,1736451044976,-287.22468158,9.86e-05,2]
[348336354,1736451044985,-500.0,9.86e-05,2]
[348336356,1736451044995,-524.42,9.86e-05,2]
[348336358,1736451045005,-667.48,9.86e-05,2]
[348336360,1736451045015,-500.0,9.86e-05,2]
[348336362,1736451045024,-926.19,9.86e-05,2]
[348336364,1736451045033,-1413.06,9.86e-05,2]
[348336366,1736451045043,-911.77,9.86e-05,2]
[348336368,1736451045052,-500.0,9.86e-05,2]
[348336370,1736451045061,-566.28211598,9.86e-05,2]
[348336372,1736451045070,-500.0,9.86e-05,2]
[348336374,1736451045080,-511.58,9.86e-05,2]
[348336376,1736451045089,-503.87,9.86e-05,2]
[348336378,1736451045099,-500.0,9.86e-05,2]
[348336380,1736451045108,-3656.44,9.86e-05,2]
[348336382,1736451045117,-500.0,9.86e-05,2]
[348336384,1736451045127,-500.0,9.86e-05,2]
[348336386,1736451045136,-500.0,9.86e-05,2]
[348336388,1736451045145,-623.52,9.86e-05,2]
[348336390,1736451045155,-500.0,9.86e-05,2]
[348336392,1736451045164,-500.0,9.86e-05,2]
[348336394,1736451045173,-500.0,9.86e-05,2]
[348336396,1736451045183,-500.0,9.86e-05,2]
[348336398,1736451045192,-500.0,9.86e-05,2]
[348336400,1736451045202,-500.0,9.86e-05,2]
[348336401,1736451045212,-591.68,9.86e-05,2]
[348336404,1736451045221,-500.0,9.86e-05,2]
[348336406,1736451045231,-791.54,9.86e-05,2]
[348336408,1736451045240,-400.04,9.86e-05,2]
[348336410,1736451045249,-500.0,9.86e-05,2]
[348336411,1736451045258,-593.02,9.86e-05,2]
[348336413,1736451045268,-500.0,9.86e-05,2]
[348336416,1736451045277,-500.0,9.86e-05,2]
[348336418,1736451045287,-500.0,9.86e-05,2]
[348336420,1736451045296,-500.0,9.86e-05,2]
[348336421,1736451045306,-575.33,9.86e-05,2]
[348336424,1736451045316,-511.91,9.86e-05,2]
[348336426,1736451045328,-500.0,9.86e-05,2]
[348336428,1736451045337,-500.0,9.86e-05,2]
[348336429,1736451045347,-500.0,9.86e-05,2]
[348336431,1736451045357,-500.91049735,9.862e-05,2]
[348336434,1736451045367,-500.0,9.862e-05,2]
[348336436,1736451045377,-386.67342082,9.862e-05,2]
[348336437,1736451045386,-500.14505605,9.862e-05,2]
[348336439,1736451045396,-200.74229359,9.862e-05,2]
[348336441,1736451045407,-501.18584784,9.862e-05,2]
[348336444,1736451045417,-300.52286915,9.862e-05,2]
[348336445,1736451045427,-500.49409309,9.862e-05,2]
[348336447,1736451045436,-500.0,9.862e-05,2]
[348336449,1736451045449,-500.0,9.862e-05,2]
[348336451,1736451045459,-500.0,9.862e-05,2]
[348336453,1736451045468,-500.0,9.862e-05,2]
[348336455,1736451045477,-500.0,9.862e-05,2]
[348336457,1736451045487,-527.7399401,9.862e-05,2]
[348336459,1736451045496,-500.0,9.862e-05,2]
[348336461,1736451045506,-500.0,9.862e-05,2]
[348336463,1736451045515,-500.0,9.862e-05,2]
[348336465,1736451045524,-500.0,9.862e-05,2]
[348336467,1736451045533,-500.0,9.862e-05,2]
[348336469,1736451045543,-500.0,9.862e-05,2]
[348336471,1736451045553,-500.0,9.862e-05,2]
[348336473,1736451045562,-500.0,9.862e-05,2]
[348336475,1736451045571,-500.0,9.862e-05,2]
[348336477,1736451045581,-500.0,9.862e-05,2]
[348336479,1736451045590,-500.0,9.862e-05,2]
[348336481,1736451045600,-500.0,9.862e-05,2]
[348336483,1736451045609,-500.0,9.862e-05,2]
[348336485,1736451045618,-500.0,9.862e-05,2]
[348336486,1736451045627,-500.0,9.862e-05,2]
[348336488,1736451045636,-500.0,9.862e-05,2]
[348336489,1736451045645,-500.0,9.862e-05,2]
[348336490,1736451045654,-437.84778395,9.862e-05,2]
[348336499,1736451045663,-500.0,9.862e-05,2]
[348336500,1736451045899,-500.0,9.862e-05,2]
[348336501,1736451045908,-500.0,9.862e-05,2]
[348336502,1736451045918,-500.0,9.862e-05,2]
[348336504,1736451045927,-500.0,9.862e-05,2]
[348336506,1736451045937,-500.0,9.862e-05,2]
[348336508,1736451045951,-500.0,9.862e-05,2]
[348336510,1736451045960,-500.0,9.862e-05,2]
[348336512,1736451045969,-542.59989617,9.862e-05,2]
[348336514,1736451045980,-526.40493881,9.862e-05,2]
[348336515,1736451045990,-500.0,9.862e-05,2]
[348336516,1736451045999,-500.0,9.862e-05,2]
[348336517,1736451046009,-500.0,9.862e-05,2]
[348336518,1736451046019,-624.2,9.862e-05,2]
[348336519,1736451046028,-513.27,9.862e-05,2]
[348336520,1736451046038,-958.41,9.862e-05,2]
[348336521,1736451046048,-500.0,9.862e-05,2]
[348336522,1736451046058,-641.02,9.862e-05,2]
[348336523,1736451046067,-500.0,9.862e-05,2]
[348336524,1736451046077,-727.31,9.862e-05,2]
[348336525,1736451046086,-647.55,9.862e-05,2]
[348336526,1736451046096,-645.24,9.862e-05,2]
[348336527,1736451046105,-820.39,9.862e-05,2]
[348336528,1736451046114,-900.18,9.862e-05,2]
[348336529,1736451046123,-500.0,9.862e-05,2]
[348336530,1736451046133,-500.0,9.862e-05,2]
[348336531,1736451046142,-500.0,9.862e-05,2]
[348336532,1736451046152,-946.41,9.862e-05,2]
[348336533,1736451046162,-500.0,9.862e-05,2]
[348336534,1736451046173,-506.04652811,9.862e-05,2]
[348336535,1736451046182,-972.44,9.862e-05,2]
[348336536,1736451046192,-534.04,9.862e-05,2]
[348336537,1736451046205,-846.01,9.862e-05,2]
[348336538,1736451046216,-500.0,9.862e-05,2]
[348336539,1736451046225,-1295.38,9.862e-05,2]
[348336540,1736451046235,-792.96,9.862e-05,2]
[348336541,1736451046244,-500.0,9.862e-05,2]
[348336542,1736451046254,-1443.11,9.862e-05,2]
[348336543,1736451046263,-501.77,9.862e-05,2]
[348336544,1736451046273,-500.0,9.862e-05,2]
[348336545,1736451046282,-589.22,9.862e-05,2]
[348336546,1736451046292,-500.0,9.862e-05,2]
[348336547,1736451046301,-1348.53,9.862e-05,2]
[348336548,1736451046311,-523.6,9.862e-05,2]
[348336549,1736451046323,-500.0,9.862e-05,2]
[348336550,1736451046335,-517.26,9.862e-05,2]
[348336551,1736451046345,-1561.21,9.862e-05,2]
[348336552,1736451046355,-3237.26,9.862e-05,2]
[348336553,1736451046365,-1475.77,9.862e-05,2]
[348336554,1736451046374,-1850.74,9.862e-05,2]
[348336555,1736451046384,-1272.97,9.862e-05,2]
[348336556,1736451046394,-6655.36,9.862e-05,2]
[348336557,1736451046404,-1756.89,9.862e-05,2]
[348336558,1736451046415,-1340.74,9.862e-05,2]
[348336559,1736451046424,-724.89,9.862e-05,2]
[348336560,1736451046433,-1120.16,9.862e-05,2]
[348336561,1736451046442,-500.0,9.862e-05,2]
[348336562,1736451046453,-1645.24,9.862e-05,2]
[348336563,1736451046463,-930.42,9.862e-05,2]
[348336564,1736451046472,-1589.88,9.862e-05,2]
[348336565,1736451046481,-500.0,9.863e-05,2]
[348336566,1736451046491,-500.0,9.863e-05,2]
[348336567,1736451046501,-500.0,9.863e-05,2]
[348336568,1736451046511,-500.0,9.863e-05,2]
[348336569,1736451046523,-500.0,9.863e-05,2]
[348336570,1736451046533,-500.0,9.863e-05,2]
[348336571,1736451046543,-500.0,9.863e-05,2]
[348336572,1736451046553,-500.0,9.863e-05,2]
[348336573,1736451046563,-500.0,9.863e-05,2]
[348336574,1736451046573,-500.0,9.863e-05,2]
[348336575,1736451046582,-500.0,9.863e-05,2]
[348336576,1736451046592,-500.0,9.863e-05,2]
[348336577,1736451046602,-500.0,9.863e-05,2]
[348336578,1736451046611,-500.0,9.863e-05,2]
[348336579,1736451046620,-500.0,9.863e-05,2]
[348336580,1736451046629,-1412.10405531,9.865e-05,2]
[348336581,1736451046638,-150.0,9.885e-05,2]
[348336582,1736451046648,-150.0,9.887e-05,2]
[348336583,1736451046657,-221.49982097,9.907e-05,2]
[348336584,1736451046666,-150.0,9.907e-05,2]
[348336585,1736451046675,-150.0,9.913e-05,2]
[348336586,1736451046684,-1412.10405531,9.932e-05,2]
[348336587,1736451046694,-156.02517304,9.933e-05,2]
[348336588,1736451046703,-150.0,9.941e-05,2]
[348336589,1736451046713,-912.47,9.964e-05,2]
[348336590,1736451046722,-2227.15,9.964e-05,2]
[348336591,1736451046731,-500.0,9.964e-05,2]
[348336592,1736451046740,-759.66,9.964e-05,2]
[348336593,1736451046750,-1118.11,9.964e-05,2]
[348336594,1736451046759,-541.61,9.964e-05,2]
[348336595,1736451046768,-1531.69,9.964e-05,2]
[348336596,1736451046782,-500.0,9.964e-05,2]
[348336597,1736451046792,-1000.0,9.964e-05,2]
[348336598,1736451046803,-967.81,9.964e-05,2]
[348336599,1736451046813,-500.0,9.964e-05,2]
[348336600,1736451046822,-500.0,9.964e-05,2]
[348336601,1736451046831,-1948.57,9.964e-05,2]
[348336602,1736451046841,-1437.34,9.964e-05,2]
[348336603,1736451046850,-156.02517304,9.966e-05,2]
[348336604,1736451046860,-1230.32168132,9.971e-05,2]
[348336605,1736451046869,-7440.0,9.973e-05,2]
[348336606,1736451046878,-500.0,9.973e-05,2]
[348336607,1736451046888,-150.0,9.975e-05,2]
[348336608,1736451046897,-246.06433627,9.975e-05,2]
[348336609,1736451046907,-1230.32168132,9.976e-05,2]
[348336610,1736451046917,-1000.0,9.98e-05,2]
[348336611,1736451046927,-1230.32168132,9.985e-05,2]
[348336612,1736451046936,-150.0,9.986e-05,2]
[348336613,1736451046947,-246.06433627,9.987e-05,2]
[348336614,1736451046957,-4859.97566595,9.988e-05,2]
[348336615,1736451046966,-246.06433627,9.99e-05,2]
[348336616,1736451046977,-1230.32168132,9.99e-05,2]
[348336617,1736451046986,-1230.32168132,9.991e-05,2]
[348336618,1736451046996,-246.06433627,9.994e-05,2]
[348336619,1736451047006,-246.06433627,9.994e-05,2]
[348336620,1736451047016,-150.0,9.997e-05,2]
[348336621,1736451047025,-1230.32168132,9.998e-05,2]
[348336622,1736451047035,-500.0,9.999e-05,2]
[348336623,1736451047044,-826.02,9.999e-05,2]
[348336624,1736451047054,-1564.43,9.999e-05,2]
[348336625,1736451047063,-749.63,9.999e-05,2]
[348336626,1736451047072,-553.68,9.999e-05,2]
[348336627,1736451047082,-642.35,9.999e-05,2]
[348336628,1736451047091,-500.0,9.999e-05,2]
[348336629,1736451047101,-1144.41,9.999e-05,2]
[348336630,1736451047110,-619.86,9.999e-05,2]
[348336631,1736451047120,-1644.6,9.999e-05,2]
[348336632,1736451047129,-500.0,9.999e-05,2]
[348336633,1736451047139,-246.06433627,9.999e-05,2]
[348336634,1736451047148,-514873.96505921,0.0001,5]
[348336635,1736451047166,-1868.26908,0.0001,5]
[348336636,1736451048225,-298.63650001,9.857e-05,2]
[348336637,1736451048270,-855.27349999,9.857e-05,2]
[348336638,1736451048280,-156.02517304,9.998e-05,2]
[348336639,1736451048290,-301.20132597,0.0001,5]
[348336640,1736451048301,-874.090001,0.0001,5]
[348336641,1736451048887,1500.0,7.363e-05,2]
[348336642,1736451049005,1181.05,8.458e-05,2]
[348336643,1736451127906,500.0,8.22e-05,2]
[348336645,1736451169217,500.0,8.22e-05,2]
[348336646,1736451297304,752.1,8.219e-05,2]
[348336649,1736451929012,-250.0,8.733e-05,2]
[348336650,1736451940318,-250.0,8.751e-05,2]
[348336651,1736451996026,307.83993901,0.00013,30]
[348336689,1736452232262,-836.6789344,8.554e-05,2]
[348336690,1736452232274,-163.3210656,8.554e-05,2]
[348336691,1736452232284,-290.81,8.561e-05,2]
[348336692,1736452232293,-302.35,8.989e-05,2]
[348336693,1736452232303,-150.0,9e-05,2]
[348336694,1736452232562,-150.0,9e-05,2]
[348336695,1736452232572,-150.0,9e-05,2]